fUSD/lending_fUSD_20250312
["ID","MTS","AMOUNT","RATE_DAILY","PERIOD"]
[355978625,1741758634917,-500.0,9.573e-05,2]
[355978626,1741758634926,-500.0,9.573e-05,2]
[355978627,1741758634935,-500.0,9.573e-05,2]
[355978628,1741758634944,-500.0,9.573e-05,2]
[355978629,1741758634953,-500.0,9.573e-05,2]
[355978630,1741758634962,-500.0,9.573e-05,2]
[355978631,1741758634971,-526.36,9.573e-05,2]
[355978632,1741758634980,-500.0,9.573e-05,2]
[355978633,1741758634989,-593.04,9.573e-05,2]
[355978634,1741758634998,-500.0,9.573e-05,2]
[355978635,1741758635007,-500.0,9.573e-05,2]
[355978636,1741758635015,-500.0,9.573e-05,2]
[355978637,1741758635024,-500.0,9.573e-05,2]
[355978638,1741758635033,-626.75,9.573e-05,2]
[355978639,1741758635042,-500.0,9.573e-05,2]
[355978640,1741758635051,-620.29,9.573e-05,2]
[355978641,1741758635060,-500.0,9.573e-05,2]
[355978642,1741758635069,-500.0,9.573e-05,2]
[355978643,1741758635077,-500.0,9.573e-05,2]
[355978644,1741758635087,-500.0,9.573e-05,2]
[355978645,1741758635096,-500.0,9.573e-05,2]
[355978646,1741758635104,-500.0,9.573e-05,2]
[355978647,1741758635114,-500.0,9.573e-05,2]
[355978648,1741758635123,-549.45,9.573e-05,2]
[355978649,1741758635132,-500.0,9.573e-05,2]
[355978650,1741758635142,-605.17,9.573e-05,2]
[355978651,1741758635151,-500.0,9.573e-05,2]
[355978652,1741758635160,-579.74,9.573e-05,2]
[355978653,1741758635170,-663.16,9.573e-05,2]
[355978654,1741758635180,-500.0,9.573e-05,2]
[355978655,1741758635189,-500.0,9.573e-05,2]
[355978656,1741758635199,-324.00322171,9.573e-05,2]
[355978657,1741758635208,-1208.24,9.573e-05,2]
[355978658,1741758635218,-902.01,9.573e-05,2]
[355978659,1741758635227,-6878.35,9.573e-05,2]
[355978660,1741758635236,-500.0,9.573e-05,2]
[355978661,1741758635246,-500.0,9.573e-05,2]
[355978662,1741758635255,-1162.56,9.573e-05,2]
[355978663,1741758635265,-1298.15,9.573e-05,2]
[355978664,1741758635275,-500.0,9.573e-05,2]
[355978665,1741758635284,-500.0,9.573e-05,2]
[355978666,1741758635294,-500.0,9.573e-05,2]
[355978667,1741758635303,-500.0,9.573e-05,2]
[355978668,1741758635312,-1086.58,9.573e-05,2]
[355978669,1741758635323,-862.73,9.573e-05,2]
[355978670,1741758635332,-500.0,9.573e-05,2]
[355978671,1741758635342,-500.0,9.573e-05,2]
[355978672,1741758635351,-1463.39,9.573e-05,2]
[355978673,1741758635361,-4710.03,9.573e-05,2]
[355978674,1741758635370,-500.0,9.573e-05,2]
[355978675,1741758635379,-526.07,9.573e-05,2]
[355978676,1741758635389,-500.0,9.573e-05,2]
[355978677,1741758635398,-500.0,9.573e-05,2]
[355978678,1741758635408,-799.62,9.573e-05,2]
[355978679,1741758635417,-1216.96,9.573e-05,2]
[355978680,1741758635426,-858.17,9.573e-05,2]
[355978681,1741758635435,-500.0,9.573e-05,2]
[355978682,1741758635448,-500.0,9.573e-05,2]
[355978683,1741758635457,-2079.77,9.573e-05,2]
[355978684,1741758635467,-643.87,9.573e-05,2]
[355978685,1741758635476,-1053.88,9.573e-05,2]
[355978686,1741758635487,-500.0,9.573e-05,2]
[355978687,1741758635496,-834.61,9.573e-05,2]
[355978688,1741758635505,-682.64,9.573e-05,2]
[355978689,1741758635516,-554.7,9.573e-05,2]
[355978690,1741758635527,-697.67,9.573e-05,2]
[355978691,1741758635537,-1310.22,9.573e-05,2]
[355978692,1741758635546,-1172.35,9.573e-05,2]
[355978693,1741758635556,-500.0,9.573e-05,2]
[355978694,1741758635565,-566.0,9.573e-05,2]
[355978695,1741758635575,-1400.72,9.573e-05,2]
[355978696,1741758635585,-500.0,9.573e-05,2]
[355978697,1741758635594,-500.0,9.573e-05,2]
[355978698,1741758635603,-956.59,9.573e-05,2]
[355978699,1741758635614,-1855.36,9.573e-05,2]
[355978700,1741758635623,-500.0,9.573e-05,2]
[355978701,1741758635634,-500.0,9.573e-05,2]
[355978702,1741758635643,-500.0,9.573e-05,2]
[355978703,1741758635653,-2368.63,9.573e-05,2]
[355978704,1741758635662,-742.44,9.573e-05,2]
[355978705,1741758635672,-500.0,9.573e-05,2]
[355978706,1741758635681,-430.27,9.573e-05,2]
[355978707,1741758635691,-1810.01,9.573e-05,2]
[355978708,1741758635700,-411.70873461,9.573e-05,2]
[355978709,1741758635709,-500.0,9.573e-05,2]
[355978710,1741758635719,-1557.51,9.573e-05,2]
[355978711,1741758635728,-4074.03,9.573e-05,2]
[355978712,1741758635738,-4497.22,9.573e-05,2]
[355978713,1741758635748,-217.94528528,9.573e-05,2]
[355978714,1741758635757,-1030.38,9.573e-05,2]
[355978715,1741758635767,-885.61,9.573e-05,2]
[355978716,1741758635776,-500.0,9.573e-05,2]
[355978717,1741758635786,-500.0,9.573e-05,2]
[355978718,1741758635795,-524.43,9.573e-05,2]
[355978719,1741758635805,-500.0,9.573e-05,2]
[355978720,1741758635815,-572.78,9.573e-05,2]
[355978721,1741758635824,-500.0,9.573e-05,2]
[355978722,1741758635833,-679.81,9.573e-05,2]
[355978723,1741758635842,-500.0,9.573e-05,2]
[355978724,1741758635851,-610.64,9.573e-05,2]
[355978725,1741758635861,-500.0,9.573e-05,2]
[355978726,1741758635871,-764.12,9.573e-05,2]
[355978727,1741758635880,-648.95,9.573e-05,2]
[355978728,1741758635890,-500.0,9.573e-05,2]
[355978729,1741758635899,-882.26,9.573e-05,2]
[355978730,1741758635909,-655.38,9.573e-05,2]
[355978731,1741758635918,-576.22,9.573e-05,2]
[355978732,1741758635927,-500.0,9.573e-05,2]
[355978733,1741758635937,-1834.71,9.573e-05,2]
[355978734,1741758635946,-833.53,9.573e-05,2]
[355978735,1741758635956,-1400.22,9.573e-05,2]
[355978736,1741758635966,-500.0,9.573e-05,2]
[355978737,1741758635976,-1813.34,9.573e-05,2]
[355978738,1741758635985,-1511.15,9.573e-05,2]
[355978739,1741758635995,-470.103726,9.8e-05,2]
[355978740,1741758636007,-164.903289,9.8e-05,2]
[355978741,1741758636017,-500.0,9.846e-05,2]
[355978742,1741758636026,-500.0,9.846e-05,2]
[355978743,1741758636036,-500.0,9.846e-05,2]
[355978744,1741758636045,-597.94,9.846e-05,2]
[355978745,1741758636054,-500.0,9.846e-05,2]
[355978746,1741758636064,-529.19833408,9.846e-05,2]
[355978747,1741758636073,-503.2,9.846e-05,2]
[355978748,1741758636082,-244.96,9.846e-05,2]
[355978749,1741758636092,-500.0,9.846e-05,2]
[355978750,1741758636101,-500.0,9.846e-05,2]
[355978751,1741758636110,-163.05032463,9.846e-05,2]
[355978752,1741758636120,-500.0,9.846e-05,2]
[355978753,1741758636129,-570.3376691,9.846e-05,2]
[355978754,1741758636139,-504.54,9.846e-05,2]
[355978755,1741758636148,-500.0,9.846e-05,2]
[355978756,1741758636157,-1343.48,9.846e-05,2]
[355978757,1741758636166,-500.0,9.846e-05,2]
[355978758,1741758636176,-531.54,9.846e-05,2]
[355978759,1741758636185,-500.0,9.846e-05,2]
[355978760,1741758636194,-520.75,9.846e-05,2]
[355978761,1741758636203,-500.0,9.846e-05,2]
[355978762,1741758636212,-500.0,9.846e-05,2]
[355978763,1741758636221,-500.0,9.846e-05,2]
[355978764,1741758636231,-491.25154207,9.846e-05,2]
[355978765,1741758636240,-500.0,9.846e-05,2]
[355978766,1741758636249,-500.0,9.846e-05,2]
[355978767,1741758636258,-637.94,9.846e-05,2]
[355978768,1741758636267,-500.0,9.846e-05,2]
[355978769,1741758636276,-464.89484781,9.846e-05,2]
[355978770,1741758636286,-444.87933531,9.846e-05,2]
[355978771,1741758636295,-500.0,9.846e-05,2]
[355978772,1741758636313,-500.0,9.846e-05,2]
[355978773,1741758636325,-581.37,9.846e-05,2]
[355978774,1741758636335,-639.81,9.846e-05,2]
[355978775,1741758636345,-500.0,9.846e-05,2]
[355978776,1741758636354,-549.37,9.846e-05,2]
[355978777,1741758636364,-1062.27,9.846e-05,2]
[355978778,1741758636374,-500.0,9.846e-05,2]
[355978779,1741758636383,-609.77,9.846e-05,2]
[355978780,1741758636393,-500.0,9.846e-05,2]
[355978781,1741758636402,-500.0,9.846e-05,2]
[355978782,1741758636411,-514.4,9.846e-05,2]
[355978783,1741758636421,-1726.1,9.846e-05,2]
[355978784,1741758636430,-846.51,9.846e-05,2]
[355978785,1741758636443,-500.0,9.846e-05,2]
[355978786,1741758636453,-500.0,9.846e-05,2]
[355978787,1741758636462,-2011.7,9.846e-05,2]
[355978788,1741758636472,-500.0,9.846e-05,2]
[355978789,1741758636482,-332.76822287,9.846e-05,2]
[355978790,1741758636491,-500.0,9.846e-05,2]
[355978791,1741758636500,-678.32,9.846e-05,2]
[355978792,1741758636510,-500.0,9.846e-05,2]
[355978793,1741758636521,-500.0,9.846e-05,2]
[355978794,1741758636531,-463.65966135,9.846e-05,2]
[355978795,1741758636540,-500.0,9.846e-05,2]
[355978796,1741758636549,-500.0,9.846e-05,2]
[355978797,1741758636563,-500.0,9.846e-05,2]
[355978798,1741758636572,-500.0,9.846e-05,2]
[355978799,1741758636581,-500.0,9.846e-05,2]
[355978800,1741758636591,-532.29,9.846e-05,2]
[355978801,1741758636600,-500.0,9.846e-05,2]
[355978802,1741758636610,-1728.1,9.846e-05,2]
[355978803,1741758636619,-500.0,9.846e-05,2]
[355978804,1741758636628,-1243.85,9.846e-05,2]
[355978805,1741758636638,-574.5,9.846e-05,2]
[355978806,1741758636647,-500.0,9.846e-05,2]
[355978807,1741758636656,-500.0,9.846e-05,2]
[355978808,1741758636665,-835.05,9.846e-05,2]
[355978809,1741758636675,-1275.6,9.846e-05,2]
[355978810,1741758636684,-500.0,9.846e-05,2]
[355978811,1741758636694,-500.0,9.846e-05,2]
[355978812,1741758636703,-500.0,9.846e-05,2]
[355978813,1741758636712,-1282.07,9.846e-05,2]
[355978814,1741758636722,-2595.54,9.846e-05,2]
[355978815,1741758636731,-500.0,9.846e-05,2]
[355978816,1741758636740,-600.27,9.846e-05,2]
[355978817,1741758636750,-522.1216545,9.846e-05,2]
[355978818,1741758636759,-204.73,9.846e-05,2]
[355978819,1741758636769,-1149.32,9.846e-05,2]
[355978820,1741758636779,-729.61,9.846e-05,2]
[355978821,1741758636788,-500.0,9.846e-05,2]
[355978822,1741758636797,-757.8,9.846e-05,2]
[355978823,1741758636807,-500.0,9.846e-05,2]
[355978824,1741758636817,-1012.57,9.846e-05,2]
[355978825,1741758636826,-500.0,9.846e-05,2]
[355978826,1741758636835,-3338.66,9.846e-05,2]
[355978827,1741758636845,-763.8,9.846e-05,2]
[355978828,1741758636854,-460.07078376,9.846e-05,2]
[355978829,1741758636863,-630.35,9.846e-05,2]
[355978830,1741758636872,-500.0,9.846e-05,2]
[355978831,1741758636882,-622.33379185,9.846e-05,2]
[355978832,1741758636891,-500.0,9.846e-05,2]
[355978833,1741758636901,-1070.83,9.846e-05,2]
[355978834,1741758636911,-500.0,9.846e-05,2]
[355978835,1741758636921,-500.0,9.846e-05,2]
[355978836,1741758636930,-500.0,9.846e-05,2]
[355978837,1741758636939,-500.0,9.846e-05,2]
[355978838,1741758636949,-500.0,9.846e-05,2]
[355978839,1741758636958,-1082.31,9.846e-05,2]
[355978840,1741758636967,-500.0,9.846e-05,2]
[355978841,1741758636977,-925.576335,9.847e-05,2]
[355978842,1741758636986,-150.942088,9.847e-05,2]
[355978843,1741758636995,-537.09,9.847e-05,2]
[355978844,1741758637005,-656.57,9.847e-05,2]
[355978845,1741758637015,-500.0,9.847e-05,2]
[355978846,1741758637024,-500.0,9.847e-05,2]
[355978847,1741758637034,-520.44,9.847e-05,2]
[355978848,1741758637043,-585.49,9.847e-05,2]
[355978849,1741758637052,-500.0,9.847e-05,2]
[355978850,1741758637062,-573.03,9.847e-05,2]
[355978851,1741758637071,-500.0,9.847e-05,2]
[355978852,1741758637080,-562.0,9.847e-05,2]
[355978853,1741758637089,-500.0,9.847e-05,2]
[355978854,1741758637098,-673.32,9.847e-05,2]
[355978855,1741758637108,-545.38,9.847e-05,2]
[355978856,1741758637117,-620.25,9.847e-05,2]
[355978857,1741758637127,-500.0,9.847e-05,2]
[355978858,1741758637136,-538.42,9.847e-05,2]
[355978859,1741758637145,-500.0,9.847e-05,2]
[355978860,1741758637154,-539.91423745,9.847e-05,2]
[355978861,1741758637164,-500.0,9.847e-05,2]
[355978862,1741758637174,-500.0,9.847e-05,2]
[355978863,1741758637183,-500.0,9.847e-05,2]
[355978864,1741758637193,-500.0,9.847e-05,2]
[355978865,1741758637202,-500.0,9.847e-05,2]
[355978866,1741758637211,-500.0,9.847e-05,2]
[355978867,1741758637221,-500.0,9.847e-05,2]
[355978868,1741758637237,-526.36,9.847e-05,2]
[355978869,1741758637254,-500.0,9.847e-05,2]
[355978870,1741758637274,-593.04,9.847e-05,2]
[355978871,1741758637283,-500.0,9.847e-05,2]
[355978872,1741758637292,-500.0,9.847e-05,2]
[355978873,1741758637302,-500.0,9.847e-05,2]
[355978874,1741758637310,-500.0,9.847e-05,2]
[355978875,1741758637320,-626.75,9.847e-05,2]
[355978876,1741758637329,-500.0,9.847e-05,2]
[355978877,1741758637338,-620.29,9.847e-05,2]
[355978878,1741758637347,-500.0,9.847e-05,2]
[355978879,1741758637357,-500.0,9.847e-05,2]
[355978880,1741758637366,-500.0,9.847e-05,2]
[355978881,1741758637375,-500.0,9.847e-05,2]
[355978882,1741758637384,-500.0,9.847e-05,2]
[355978883,1741758637394,-500.0,9.847e-05,2]
[355978884,1741758637403,-500.0,9.847e-05,2]
[355978885,1741758637412,-549.45,9.847e-05,2]
[355978886,1741758637422,-500.0,9.847e-05,2]
[355978887,1741758637432,-605.17,9.847e-05,2]
[355978888,1741758637447,-500.0,9.847e-05,2]
[355978889,1741758637456,-579.74,9.847e-05,2]
[355978890,1741758637465,-663.16,9.847e-05,2]
[355978891,1741758637475,-500.0,9.847e-05,2]
[355978892,1741758637485,-500.0,9.847e-05,2]
[355978893,1741758637495,-1208.24,9.847e-05,2]
[355978894,1741758637504,-902.01,9.847e-05,2]
[355978895,1741758637514,-6878.35,9.847e-05,2]
[355978896,1741758637527,-247.36762686,9.847e-05,2]
[355978897,1741758637536,-500.0,9.847e-05,2]
[355978898,1741758637546,-1162.56,9.847e-05,2]
[355978899,1741758637556,-1298.15,9.847e-05,2]
[355978900,1741758637565,-500.0,9.847e-05,2]
[355978901,1741758637574,-500.0,9.847e-05,2]
[355978902,1741758637583,-500.0,9.847e-05,2]
[355978903,1741758637593,-500.0,9.847e-05,2]
[355978904,1741758637602,-1086.58,9.847e-05,2]
[355978905,1741758637612,-862.73,9.847e-05,2]
[355978906,1741758637621,-500.0,9.847e-05,2]
[355978909,1741758637631,-500.0,9.847e-05,2]
[355978913,1741758637640,-1463.39,9.847e-05,2]
[355978915,1741758637650,-4710.03,9.847e-05,2]
[355978916,1741758637659,-500.0,9.847e-05,2]
[355978917,1741758637668,-526.07,9.847e-05,2]
[355978918,1741758637678,-500.0,9.847e-05,2]
[355978919,1741758637687,-500.0,9.847e-05,2]
[355978920,1741758637696,-799.62,9.847e-05,2]
[355978921,1741758637705,-1216.96,9.847e-05,2]
[355978922,1741758637714,-858.17,9.847e-05,2]
[355978923,1741758637723,-500.0,9.847e-05,2]
[355978924,1741758637733,-2079.77,9.847e-05,2]
[355978925,1741758637742,-643.87,9.847e-05,2]
[355978926,1741758637751,-500.0,9.847e-05,2]
[355978927,1741758637760,-1053.88,9.847e-05,2]
[355978928,1741758637770,-500.0,9.847e-05,2]
[355978929,1741758637779,-834.61,9.847e-05,2]
[355978930,1741758637789,-682.64,9.847e-05,2]
[355978931,1741758637798,-554.7,9.847e-05,2]
[355978932,1741758637808,-697.67,9.847e-05,2]
[355978933,1741758637817,-1310.22,9.847e-05,2]
[355978934,1741758637827,-1172.35,9.847e-05,2]
[355978935,1741758637836,-500.0,9.847e-05,2]
[355978936,1741758637846,-566.0,9.847e-05,2]
[355978937,1741758637855,-1400.72,9.847e-05,2]
[355978938,1741758637865,-500.0,9.847e-05,2]
[355978939,1741758637875,-500.0,9.847e-05,2]
[355978940,1741758637884,-956.59,9.847e-05,2]
[355978941,1741758637894,-1855.36,9.847e-05,2]
[355978942,1741758637903,-500.0,9.847e-05,2]
[355978943,1741758637912,-500.0,9.847e-05,2]
[355978944,1741758637922,-500.0,9.847e-05,2]
[355978945,1741758637932,-2368.63,9.847e-05,2]
[355978946,1741758637941,-742.44,9.847e-05,2]
[355978947,1741758637951,-500.0,9.847e-05,2]
[355978948,1741758637961,-1810.01,9.847e-05,2]
[355978949,1741758637970,-500.0,9.847e-05,2]
[355978950,1741758637979,-1557.51,9.847e-05,2]
[355978951,1741758637989,-4074.03,9.847e-05,2]
[355978952,1741758638003,-4497.22,9.847e-05,2]
[355978953,1741758638017,-1030.38,9.847e-05,2]
[355978954,1741758638027,-885.61,9.847e-05,2]
[355978955,1741758638036,-500.0,9.847e-05,2]
[355978956,1741758638046,-500.0,9.847e-05,2]
[355978957,1741758638055,-524.43,9.847e-05,2]
[355978958,1741758638065,-500.0,9.847e-05,2]
[355978959,1741758638075,-572.78,9.847e-05,2]
[355978961,1741758638084,-500.0,9.847e-05,2]
[355978963,1741758638093,-679.81,9.847e-05,2]
[355978965,1741758638102,-500.0,9.847e-05,2]
[355978967,1741758638112,-610.64,9.847e-05,2]
[355978969,1741758638121,-500.0,9.847e-05,2]
[355978971,1741758638130,-764.12,9.847e-05,2]
[355978973,1741758638140,-648.95,9.847e-05,2]
[355978974,1741758638149,-500.0,9.847e-05,2]
[355978975,1741758638158,-882.26,9.847e-05,2]
[355978976,1741758638167,-655.38,9.847e-05,2]
[355978977,1741758638176,-576.22,9.847e-05,2]
[355978978,1741758638186,-500.0,9.847e-05,2]
[355978980,1741758638195,-1834.71,9.847e-05,2]
[355978982,1741758638203,-833.53,9.847e-05,2]
[355978984,1741758638212,-1400.22,9.847e-05,2]
[355978985,1741758638221,-500.0,9.847e-05,2]
[355978986,1741758638231,-1813.34,9.847e-05,2]
[355978987,1741758638239,-1511.15,9.847e-05,2]
[355978988,1741758638249,-5000.0,9.898e-05,2]
[355978989,1741758638259,-500.0,9.9e-05,2]
[355978990,1741758638269,-7225.3067,9.9e-05,2]
[355978991,1741758638285,-200.0,9.99e-05,2]
[355978992,1741758638294,-1089.422,9.997e-05,2]
[355978993,1741758638303,-515.86,9.998e-05,2]
[355978994,1741758638313,-506.17,9.998e-05,2]
[355978995,1741758638322,-500.0,9.998e-05,2]
[355978996,1741758638332,-500.0,9.998e-05,2]
[355978997,1741758638342,-500.0,9.998e-05,2]
[355978998,1741758638352,-601.8,9.998e-05,2]
[355978999,1741758638361,-500.0,9.998e-05,2]
[355979000,1741758638371,-500.0,9.998e-05,2]
[355979001,1741758638380,-500.0,9.998e-05,2]
[355979002,1741758638593,-500.0,9.998e-05,2]
[355979003,1741758638604,-500.0,9.998e-05,2]
[355979004,1741758638613,-500.0,9.998e-05,2]
[355979005,1741758638624,-500.0,9.998e-05,2]
[355979006,1741758638634,-500.0,9.998e-05,2]
[355979007,1741758638643,-590.34,9.998e-05,2]
[355979008,1741758638653,-500.0,9.998e-05,2]
[355979009,1741758638663,-500.0,9.998e-05,2]
[355979010,1741758638672,-500.0,9.998e-05,2]
[355979011,1741758638682,-500.0,9.998e-05,2]
[355979012,1741758638691,-500.0,9.998e-05,2]
[355979013,1741758638701,-500.0,9.998e-05,2]
[355979014,1741758638711,-563.48,9.998e-05,2]
[355979015,1741758638720,-500.0,9.998e-05,2]
[355979016,1741758638729,-500.0,9.998e-05,2]
[355979017,1741758638739,-253.63723454,9.998e-05,2]
[355979018,1741758638749,-500.0,9.998e-05,2]
[355979019,1741758638759,-500.0,9.998e-05,2]
[355979020,1741758638768,-500.0,9.998e-05,2]
[355979021,1741758638778,-654.44,9.998e-05,2]
[355979022,1741758638787,-500.0,9.998e-05,2]
[355979023,1741758638796,-603.78,9.998e-05,2]
[355979024,1741758638806,-500.0,9.998e-05,2]
[355979025,1741758638815,-500.0,9.998e-05,2]
[355979026,1741758638824,-500.0,9.998e-05,2]
[355979027,1741758638833,-500.0,9.998e-05,2]
[355979028,1741758638843,-500.0,9.998e-05,2]
[355979029,1741758638852,-500.0,9.998e-05,2]
[355979030,1741758638862,-517.39,9.998e-05,2]
[355979031,1741758638872,-500.0,9.998e-05,2]
[355979032,1741758638882,-500.0,9.998e-05,2]
[355979033,1741758638891,-500.0,9.998e-05,2]
[355979034,1741758638901,-500.0,9.998e-05,2]
[355979035,1741758638910,-500.0,9.998e-05,2]
[355979036,1741758638920,-500.0,9.998e-05,2]
[355979037,1741758638929,-500.0,9.998e-05,2]
[355979038,1741758638938,-500.0,9.998e-05,2]
[355979039,1741758638948,-500.0,9.998e-05,2]
[355979040,1741758638957,-500.0,9.998e-05,2]
[355979041,1741758638967,-500.0,9.998e-05,2]
[355979042,1741758638976,-500.0,9.998e-05,2]
[355979043,1741758638985,-500.0,9.998e-05,8]
[355979044,1741758638995,-500.0,9.998e-05,2]
[355979045,1741758639005,-500.0,9.998e-05,2]
[355979046,1741758639014,-500.0,9.998e-05,2]
[355979047,1741758639025,-352.96824078,9.998e-05,2]
[355979048,1741758639034,-500.0,9.998e-05,2]
[355979049,1741758639044,-500.0,9.998e-05,2]
[355979050,1741758639053,-500.0,9.998e-05,2]
[355979051,1741758639063,-500.0,9.998e-05,2]
[355979052,1741758639072,-500.0,9.998e-05,2]
[355979053,1741758639082,-500.0,9.998e-05,2]
[355979054,1741758639091,-500.0,9.998e-05,2]
[355979055,1741758639100,-500.0,9.998e-05,2]
[355979056,1741758639110,-500.0,9.998e-05,2]
[355979057,1741758639119,-500.0,9.998e-05,2]
[355979058,1741758639129,-500.0,9.998e-05,2]
[355979059,1741758639138,-500.0,9.998e-05,2]
[355979060,1741758639148,-500.0,9.998e-05,2]
[355979061,1741758639157,-500.0,9.998e-05,2]
[355979062,1741758639167,-500.0,9.998e-05,2]
[355979063,1741758639176,-500.0,9.998e-05,2]
[355979064,1741758639186,-500.0,9.998e-05,2]
[355979065,1741758639196,-523.26,9.998e-05,2]
[355979066,1741758639205,-548.58,9.998e-05,2]
[355979067,1741758639215,-500.0,9.998e-05,2]
[355979068,1741758639224,-500.0,9.998e-05,2]
[355979069,1741758639233,-559.8,9.998e-05,2]
[355979070,1741758639242,-500.0,9.998e-05,2]
[355979071,1741758639252,-790.16,9.998e-05,2]
[355979072,1741758639261,-500.0,9.998e-05,2]
[355979073,1741758639271,-500.0,9.998e-05,2]
[355979074,1741758639280,-500.0,9.998e-05,2]
[355979075,1741758639290,-526.9,9.998e-05,2]
[355979076,1741758639299,-500.0,9.998e-05,2]
[355979077,1741758639308,-500.0,9.998e-05,2]
[355979078,1741758639318,-585.06,9.998e-05,2]
[355979079,1741758639327,-500.0,9.998e-05,2]
[355979080,1741758639336,-500.0,9.998e-05,2]
[355979081,1741758639346,-500.0,9.998e-05,2]
[355979082,1741758639356,-500.0,9.998e-05,2]
[355979083,1741758639366,-500.0,9.998e-05,2]
[355979084,1741758639375,-500.0,9.998e-05,2]
[355979085,1741758639384,-500.0,9.998e-05,2]
[355979086,1741758639394,-500.0,9.998e-05,2]
[355979087,1741758639403,-594.8,9.998e-05,2]
[355979088,1741758639413,-500.0,9.998e-05,2]
[355979089,1741758639423,-500.0,9.998e-05,2]
[355979090,1741758639432,-500.0,9.998e-05,2]
[355979091,1741758639445,-500.0,9.998e-05,2]
[355979092,1741758639455,-500.0,9.998e-05,2]
[355979093,1741758639465,-500.0,9.998e-05,2]
[355979094,1741758639475,-500.0,9.998e-05,2]
[355979095,1741758639486,-500.0,9.998e-05,2]
[355979096,1741758639496,-500.0,9.998e-05,2]
[355979097,1741758639506,-500.0,9.998e-05,2]
[355979098,1741758639515,-500.0,9.998e-05,2]
[355979099,1741758639526,-503.30372485,9.998e-05,2]
[355979100,1741758639536,-500.0,9.998e-05,2]
[355979101,1741758639546,-500.0,9.998e-05,2]
[355979102,1741758639555,-545.37,9.998e-05,2]
[355979103,1741758639565,-500.0,9.998e-05,2]
[355979104,1741758639574,-500.0,9.998e-05,2]
[355979105,1741758639583,-500.0,9.998e-05,2]
[355979106,1741758639595,-754.51,9.998e-05,2]
[355979107,1741758639604,-500.0,9.998e-05,2]
[355979108,1741758639613,-500.0,9.998e-05,2]
[355979109,1741758639624,-500.0,9.998e-05,2]
[355979110,1741758639633,-500.0,9.998e-05,2]
[355979111,1741758639643,-500.0,9.998e-05,2]
[355979112,1741758639652,-500.0,9.998e-05,2]
[355979113,1741758639662,-526.33,9.998e-05,2]
[355979114,1741758639672,-500.0,9.998e-05,2]
[355979115,1741758639682,-765.53,9.998e-05,2]
[355979116,1741758639692,-500.0,9.998e-05,2]
[355979117,1741758639702,-500.0,9.998e-05,2]
[355979118,1741758639711,-500.0,9.998e-05,2]
[355979119,1741758639721,-500.0,9.998e-05,2]
[355979120,1741758639731,-500.0,9.998e-05,2]
[355979121,1741758639740,-500.0,9.998e-05,2]
[355979122,1741758639750,-505.89,9.998e-05,2]
[355979123,1741758639760,-500.0,9.998e-05,2]
[355979124,1741758639770,-500.0,9.998e-05,2]
[355979125,1741758639780,-500.0,9.998e-05,2]
[355979126,1741758639789,-500.0,9.998e-05,2]
[355979127,1741758639799,-640.06,9.998e-05,2]
[355979128,1741758639809,-500.0,9.998e-05,2]
[355979129,1741758639818,-500.0,9.999e-05,2]
[355979130,1741758639828,-1484.55,9.999e-05,2]
[355979131,1741758639837,-456.81458292,9.999e-05,2]
[355979132,1741758639847,-500.0,9.999e-05,2]
[355979133,1741758639857,-500.0,9.999e-05,2]
[355979134,1741758639868,-500.0,9.999e-05,2]
[355979135,1741758639877,-265.86274902,9.999e-05,2]
[355979136,1741758639887,-500.0,9.999e-05,2]
[355979137,1741758639897,-500.0,9.999e-05,2]
[355979138,1741758639907,-500.0,9.999e-05,2]
[355979139,1741758639916,-500.0,9.999e-05,2]
[355979140,1741758639926,-150.0,9.999e-05,2]